[Event "Early-Titled-Tuesday-Blitz-January-30-2024"]
[Site "Chess.com"]
[Date "2024.01.30"]
[Round "7"]
[White "MatthewG-p4p"]
[Black "Sina_Movahed"]
[Result "1-0"]
[WhiteElo "2884"]
[BlackElo "3027"]
[TimeControl "180+1"]
[EndTime "9:20:10 PST"]
[Termination "MatthewG-p4p won by checkmate"]

1. e4 {[%clk 0:02:48.4]} 1... c5 {[%clk 0:02:56.9]} 2. c3 {[%clk 0:02:48.4]}
2... Nf6 {[%clk 0:02:55.9]} 3. e5 {[%clk 0:02:48.6]} 3... Nd5 {[%clk 0:02:56.5]}
4. Nf3 {[%clk 0:02:49.4]} 4... e6 {[%clk 0:02:56.6]} 5. Bc4 {[%clk 0:02:49.3]}
5... Nc6 {[%clk 0:02:50.6]} 6. d4 {[%clk 0:02:47.8]} 6... cxd4 {[%clk
0:02:50.9]} 7. cxd4 {[%clk 0:02:48.7]} 7... d6 {[%clk 0:02:51.5]} 8. O-O {[%clk
0:02:48.7]} 8... Be7 {[%clk 0:02:50.9]} 9. Bd2 {[%clk 0:02:48.8]} 9... O-O
{[%clk 0:02:49.9]} 10. Nc3 {[%clk 0:02:47]} 10... Nxc3 {[%clk 0:02:38.5]} 11.
Bxc3 {[%clk 0:02:47.9]} 11... dxe5 {[%clk 0:02:37.5]} 12. dxe5 {[%clk
0:02:48.8]} 12... Qc7 {[%clk 0:02:37.7]} 13. Qe2 {[%clk 0:02:48.5]} 13... a6
{[%clk 0:02:38.2]} 14. Rac1 {[%clk 0:02:44.6]} 14... b5 {[%clk 0:02:36.6]} 15.
Bd3 {[%clk 0:02:44]} 15... Bb7 {[%clk 0:02:36.9]} 16. Qe4 {[%clk 0:02:42.1]}
16... g6 {[%clk 0:02:36.5]} 17. Qg4 {[%clk 0:02:39.1]} 17... Rfd8 {[%clk
0:02:34.6]} 18. Be4 {[%clk 0:02:31.8]} 18... Qb6 {[%clk 0:02:34.7]} 19. h4
{[%clk 0:02:12.4]} 19... b4 {[%clk 0:02:32]} 20. Bd2 {[%clk 0:02:12.8]} 20... h5
{[%clk 0:02:19.2]} 21. Qg3 {[%clk 0:02:03.8]} 21... Nd4 {[%clk 0:02:18.3]} 22.
Nxd4 {[%clk 0:01:19.2]} 22... Rxd4 {[%clk 0:02:10.7]} 23. Bxb7 {[%clk
0:01:06.7]} 23... Qxb7 {[%clk 0:02:11.6]} 24. Bf4 {[%clk 0:00:44.2]} 24... Rad8
{[%clk 0:02:09]} 25. Rfe1 {[%clk 0:00:41.5]} 25... R8d7 {[%clk 0:01:55.9]} 26.
Re2 {[%clk 0:00:39.9]} 26... Qd5 {[%clk 0:01:55.4]} 27. Kh2 {[%clk 0:00:16]}
27... Qxa2 {[%clk 0:01:46.6]} 28. Rc8+ {[%clk 0:00:16.1]} 28... Kg7 {[%clk
0:01:35.7]} 29. Bg5 {[%clk 0:00:07.3]} 29... Qd5 {[%clk 0:01:07.5]} 30. Bxe7
{[%clk 0:00:03.3]} 30... f5 {[%clk 0:00:34.7]} 31. Bf6+ {[%clk 0:00:03.3]} 31...
Kf7 {[%clk 0:00:34.2]} 32. Rh8 {[%clk 0:00:03.2]} 32... Rg4 {[%clk 0:00:31]} 33.
Qf3 {[%clk 0:00:03.7]} 33... Qxf3 {[%clk 0:00:23.5]} 34. gxf3 {[%clk 0:00:04.6]}
34... Rc4 {[%clk 0:00:23.3]} 35. Rh7+ {[%clk 0:00:05]} 35... Ke8 {[%clk
0:00:23.6]} 36. Rh8+ {[%clk 0:00:05.9]} 36... Kf7 {[%clk 0:00:23.5]} 37. Kg3
{[%clk 0:00:06.8]} 37... a5 {[%clk 0:00:21.5]} 38. b3 {[%clk 0:00:06.7]} 38...
Rc3 {[%clk 0:00:20.5]} 39. Ra2 {[%clk 0:00:07.4]} 39... f4+ {[%clk 0:00:17.7]}
40. Kxf4 {[%clk 0:00:06.5]} 40... Rd4+ {[%clk 0:00:16.9]} 41. Kg5 {[%clk
0:00:07.1]} 41... Rc5 {[%clk 0:00:14.4]} 42. Rh7+ {[%clk 0:00:05.8]} 42... Ke8
{[%clk 0:00:14.7]} 43. Kxg6 {[%clk 0:00:06.4]} 43... Rd3 {[%clk 0:00:13.1]} 44.
Re7+ {[%clk 0:00:06.7]} 44... Kd8 {[%clk 0:00:12.5]} 45. Rxe6+ {[%clk
0:00:06.6]} 45... Kd7 {[%clk 0:00:12.1]} 46. Re7+ {[%clk 0:00:03.8]} 46... Kc6
{[%clk 0:00:11.7]} 47. Ra7 {[%clk 0:00:04.7]} 47... Kb6 {[%clk 0:00:11.3]} 48.
Ra8 {[%clk 0:00:04.1]} 48... Rxf3 {[%clk 0:00:11.4]} 49. Rb8+ {[%clk 0:00:04.4]}
49... Kc7 {[%clk 0:00:11.5]} 50. Ra8 {[%clk 0:00:04.7]} 50... Kb6 {[%clk
0:00:11.3]} 51. R8xa5 {[%clk 0:00:03.9]} 51... Rxa5 {[%clk 0:00:10.5]} 52. Bd8+
{[%clk 0:00:04.6]} 52... Kb5 {[%clk 0:00:10.9]} 53. Rxa5+ {[%clk 0:00:04.8]}
53... Kc6 {[%clk 0:00:11.6]} 54. Bg5 {[%clk 0:00:04.8]} 54... Rxb3 {[%clk
0:00:11.5]} 55. e6 {[%clk 0:00:05.2]} 55... Rb1 {[%clk 0:00:12.1]} 56. e7 {[%clk
0:00:04.9]} 56... Re1 {[%clk 0:00:12.6]} 57. Be3 {[%clk 0:00:05.5]} 57... Rg1+
{[%clk 0:00:11.5]} 58. Kf7 {[%clk 0:00:05.8]} 58... b3 {[%clk 0:00:09.9]} 59.
e8=Q+ {[%clk 0:00:06.2]} 59... Kb7 {[%clk 0:00:10.8]} 60. Qd7+ {[%clk
0:00:06.2]} 60... Kb8 {[%clk 0:00:11.7]} 61. Bf4# {[%clk 0:00:04.9]} 1-0

[Event "Early-Titled-Tuesday-Blitz-January-30-2024"]
[Site "Chess.com"]
[Date "2024.01.30"]
[Round "7"]
[White "monomita"]
[Black "DvaHrasta"]
[Result "1-0"]
[WhiteElo "2768"]
[BlackElo "2539"]
[TimeControl "180+1"]
[EndTime "9:20:15 PST"]
[Termination "monomita won on time"]

1. d4 {[%clk 0:03:00.9]} 1... Nf6 {[%clk 0:02:59.4]} 2. c4 {[%clk 0:03:01.4]}
2... e6 {[%clk 0:02:59.6]} 3. g3 {[%clk 0:03:02]} 3... d5 {[%clk 0:02:59]} 4.
Bg2 {[%clk 0:03:02.5]} 4... Bb4+ {[%clk 0:02:58.9]} 5. Nd2 {[%clk 0:03:01.8]}
5... O-O {[%clk 0:02:58]} 6. Nf3 {[%clk 0:03:01.8]} 6... c6 {[%clk 0:02:57.8]}
7. O-O {[%clk 0:03:01.6]} 7... b5 {[%clk 0:02:54.9]} 8. cxb5 {[%clk 0:02:58.5]}
8... cxb5 {[%clk 0:02:53.3]} 9. Nb3 {[%clk 0:02:58.9]} 9... a5 {[%clk
0:02:49.8]} 10. Ne5 {[%clk 0:02:55.1]} 10... a4 {[%clk 0:02:45.6]} 11. Nc5
{[%clk 0:02:55.1]} 11... Bxc5 {[%clk 0:02:42.5]} 12. dxc5 {[%clk 0:02:54.8]}
12... Nfd7 {[%clk 0:02:41.2]} 13. Nxd7 {[%clk 0:02:42.7]} 13... Nxd7 {[%clk
0:02:41]} 14. Be3 {[%clk 0:02:41]} 14... Bb7 {[%clk 0:02:34.2]} 15. Rc1 {[%clk
0:02:37.4]} 15... Bc6 {[%clk 0:02:34.1]} 16. f4 {[%clk 0:02:32.3]} 16... b4
{[%clk 0:02:25.7]} 17. Qd2 {[%clk 0:02:31.6]} 17... Qa5 {[%clk 0:02:20.3]} 18.
Bd4 {[%clk 0:02:26.9]} 18... b3 {[%clk 0:02:12.4]} 19. Qxa5 {[%clk 0:02:21.9]}
19... Rxa5 {[%clk 0:02:11.9]} 20. axb3 {[%clk 0:02:21.1]} 20... axb3 {[%clk
0:02:11.7]} 21. Rf3 {[%clk 0:02:21.3]} 21... Rb8 {[%clk 0:02:06.3]} 22. Rd3
{[%clk 0:01:52.6]} 22... f5 {[%clk 0:02:02.4]} 23. e3 {[%clk 0:01:46.4]} 23...
Kf7 {[%clk 0:02:00.2]} 24. Bf3 {[%clk 0:01:46.6]} 24... Nf6 {[%clk 0:01:54]} 25.
Bd1 {[%clk 0:01:44.6]} 25... Rab5 {[%clk 0:01:47.5]} 26. Rcc3 {[%clk 0:01:42.5]}
26... Ne4 {[%clk 0:01:39.2]} 27. Rxb3 {[%clk 0:01:42.3]} 27... Ra8 {[%clk
0:01:24.2]} 28. Rxb5 {[%clk 0:01:31.4]} 28... Bxb5 {[%clk 0:01:23.5]} 29. Ra3
{[%clk 0:01:27.1]} 29... Rxa3 {[%clk 0:01:11.3]} 30. bxa3 {[%clk 0:01:28]} 30...
g6 {[%clk 0:01:10.1]} 31. a4 {[%clk 0:01:24.8]} 31... Bc4 {[%clk 0:01:03.4]} 32.
a5 {[%clk 0:01:20.6]} 32... Ke7 {[%clk 0:01:01.8]} 33. Ba4 {[%clk 0:01:18.3]}
33... Kd8 {[%clk 0:00:56]} 34. Bc6 {[%clk 0:00:59.1]} 34... Ba6 {[%clk
0:00:52.4]} 35. Kg2 {[%clk 0:00:51.6]} 35... Nd2 {[%clk 0:00:51.9]} 36. Kf2
{[%clk 0:00:41]} 36... Nb3 {[%clk 0:00:50.4]} 37. Ba4 {[%clk 0:00:33.2]} 37...
Nxa5 {[%clk 0:00:48.5]} 38. c6 {[%clk 0:00:20.4]} 38... Nc4 {[%clk 0:00:35.3]}
39. g4 {[%clk 0:00:20.7]} 39... fxg4 {[%clk 0:00:32]} 40. Kg3 {[%clk 0:00:21.1]}
40... Bc8 {[%clk 0:00:30.4]} 41. Bf6+ {[%clk 0:00:16.7]} 41... Kc7 {[%clk
0:00:30.3]} 42. Kxg4 {[%clk 0:00:16.8]} 42... e5+ {[%clk 0:00:29.9]} 43. Kg5
{[%clk 0:00:17.2]} 43... exf4 {[%clk 0:00:30]} 44. exf4 {[%clk 0:00:16.7]} 44...
Nb6 {[%clk 0:00:29.7]} 45. Be5+ {[%clk 0:00:16.4]} 45... Kd8 {[%clk 0:00:28.4]}
46. c7+ {[%clk 0:00:16.9]} 46... Ke7 {[%clk 0:00:28.4]} 47. Bc6 {[%clk
0:00:17.6]} 47... Be6 {[%clk 0:00:23.3]} 48. Bd4 {[%clk 0:00:15]} 48... Nc8
{[%clk 0:00:22.6]} 49. Bc5+ {[%clk 0:00:14.8]} 49... Kf7 {[%clk 0:00:22.7]} 50.
Kh6 {[%clk 0:00:14.9]} 50... Ne7 {[%clk 0:00:18.7]} 51. Bxe7 {[%clk 0:00:14]}
51... Kxe7 {[%clk 0:00:18.7]} 52. Bxd5 {[%clk 0:00:14.7]} 52... Bc8 {[%clk
0:00:14.6]} 53. Kxh7 {[%clk 0:00:15.1]} 53... Kd6 {[%clk 0:00:14.9]} 54. Be4
{[%clk 0:00:14.9]} 54... Kxc7 {[%clk 0:00:14.7]} 55. Bxg6 {[%clk 0:00:15]} 55...
Kd6 {[%clk 0:00:14.9]} 56. Kg7 {[%clk 0:00:15.6]} 56... Bh3 {[%clk 0:00:13.1]}
57. Kf6 {[%clk 0:00:13.9]} 57... Kd7 {[%clk 0:00:12.8]} 58. Bf5+ {[%clk
0:00:13.8]} 1-0

[Event "Early-Titled-Tuesday-Blitz-January-30-2024"]
[Site "Chess.com"]
[Date "2024.01.30"]
[Round "7"]
[White "Eagle_2019"]
[Black "GroovyKettle"]
[Result "1-0"]
[WhiteElo "2825"]
[BlackElo "2961"]
[TimeControl "180+1"]
[EndTime "9:20:22 PST"]
[Termination "Eagle_2019 won on time"]

1. d4 {[%clk 0:03:00.9]} 1... Nf6 {[%clk 0:02:59.6]} 2. c4 {[%clk 0:03:00.5]}
2... e6 {[%clk 0:02:59.6]} 3. Nf3 {[%clk 0:02:59.7]} 3... d5 {[%clk 0:02:57.9]}
4. g3 {[%clk 0:02:59.8]} 4... dxc4 {[%clk 0:02:57.7]} 5. Bg2 {[%clk 0:02:59.4]}
5... Bd7 {[%clk 0:02:58.4]} 6. Nbd2 {[%clk 0:02:53.9]} 6... Bb5 {[%clk
0:02:57.8]} 7. Ne5 {[%clk 0:02:42.9]} 7... a5 {[%clk 0:02:41.8]} 8. O-O {[%clk
0:02:35.4]} 8... Qxd4 {[%clk 0:02:36.8]} 9. Ndxc4 {[%clk 0:02:28.5]} 9... Qxd1
{[%clk 0:02:36.3]} 10. Rxd1 {[%clk 0:02:29.4]} 10... c6 {[%clk 0:02:20]} 11. Bg5
{[%clk 0:02:23.7]} 11... h6 {[%clk 0:02:10.7]} 12. Bd2 {[%clk 0:02:15.4]} 12...
a4 {[%clk 0:02:06.5]} 13. Bc3 {[%clk 0:02:11.4]} 13... Be7 {[%clk 0:02:01.5]}
14. e4 {[%clk 0:01:34.4]} 14... O-O {[%clk 0:01:28.7]} 15. Nd6 {[%clk
0:01:33.6]} 15... Ba6 {[%clk 0:01:26.9]} 16. f4 {[%clk 0:01:19.7]} 16... Ne8
{[%clk 0:01:04]} 17. Nc8 {[%clk 0:01:05.5]} 17... Bc5+ {[%clk 0:00:45.8]} 18.
Bd4 {[%clk 0:01:05.2]} 18... Bxd4+ {[%clk 0:00:45.9]} 19. Rxd4 {[%clk
0:01:06.1]} 19... Nc7 {[%clk 0:00:46.6]} 20. Nb6 {[%clk 0:00:53.4]} 20... Ra7
{[%clk 0:00:46.6]} 21. Nxa4 {[%clk 0:00:38.6]} 21... Nb5 {[%clk 0:00:38.6]} 22.
Rd2 {[%clk 0:00:36.7]} 22... f6 {[%clk 0:00:34.4]} 23. Nf3 {[%clk 0:00:32.9]}
23... f5 {[%clk 0:00:21]} 24. Nc5 {[%clk 0:00:28.6]} 24... fxe4 {[%clk
0:00:20.8]} 25. Nxe4 {[%clk 0:00:28.2]} 25... Nc7 {[%clk 0:00:21.1]} 26. b3
{[%clk 0:00:16.7]} 26... Nd5 {[%clk 0:00:20]} 27. Nd4 {[%clk 0:00:16.7]} 27...
Nd7 {[%clk 0:00:18.7]} 28. Nxe6 {[%clk 0:00:15.3]} 28... Re8 {[%clk 0:00:19]}
29. Nc7 {[%clk 0:00:11.5]} 29... Nxc7 {[%clk 0:00:16]} 30. Rxd7 {[%clk
0:00:11.3]} 30... Nd5 {[%clk 0:00:16.6]} 31. Nc5 {[%clk 0:00:10.9]} 31... Nf6
{[%clk 0:00:16.4]} 32. Rd2 {[%clk 0:00:10.2]} 32... Bb5 {[%clk 0:00:13.5]} 33.
Rad1 {[%clk 0:00:08.2]} 33... b6 {[%clk 0:00:13.6]} 34. Na4 {[%clk 0:00:07.3]}
34... Bxa4 {[%clk 0:00:12.8]} 35. bxa4 {[%clk 0:00:08.2]} 35... Rc8 {[%clk
0:00:10.8]} 36. Rc2 {[%clk 0:00:05.8]} 36... c5 {[%clk 0:00:08.3]} 37. Rd6
{[%clk 0:00:05.8]} 37... Rxa4 {[%clk 0:00:08.6]} 38. Rxb6 {[%clk 0:00:05.9]}
38... c4 {[%clk 0:00:07.6]} 39. Bc6 {[%clk 0:00:05.2]} 39... Ra5 {[%clk
0:00:06.8]} 40. Rxc4 {[%clk 0:00:05.3]} 40... Kf8 {[%clk 0:00:06]} 41. Rc2
{[%clk 0:00:05.1]} 41... Nd5 {[%clk 0:00:04.9]} 42. Rbb2 {[%clk 0:00:03.6]}
42... Ne3 {[%clk 0:00:05]} 43. Re2 {[%clk 0:00:03.2]} 43... Nd1 {[%clk
0:00:03.9]} 44. Rbd2 {[%clk 0:00:02.9]} 44... Nc3 {[%clk 0:00:03.5]} 45. Re6
{[%clk 0:00:03.2]} 45... Ra6 {[%clk 0:00:03.8]} 46. Rdd6 {[%clk 0:00:02.9]}
46... Rxa2 {[%clk 0:00:03]} 47. Bd7 {[%clk 0:00:03.2]} 47... Rd8 {[%clk
0:00:03]} 48. Rd3 {[%clk 0:00:02.1]} 48... Na4 {[%clk 0:00:02.3]} 49. Red6
{[%clk 0:00:01.8]} 49... Nc5 {[%clk 0:00:02.8]} 50. Rd1 {[%clk 0:00:02.2]} 50...
Rc2 {[%clk 0:00:02.5]} 51. Bf5 {[%clk 0:00:01.8]} 51... Rxd6 {[%clk 0:00:03.4]}
52. Rxd6 {[%clk 0:00:02.4]} 52... Rc1+ {[%clk 0:00:04]} 53. Kg2 {[%clk
0:00:02.7]} 53... Ke7 {[%clk 0:00:04.6]} 54. Rd5 {[%clk 0:00:02.5]} 54... Rc3
{[%clk 0:00:05.1]} 55. g4 {[%clk 0:00:02.5]} 55... Kf6 {[%clk 0:00:05.7]} 56. h4
{[%clk 0:00:02.9]} 56... g6 {[%clk 0:00:05.7]} 57. Rd6+ {[%clk 0:00:03.1]} 57...
Kf7 {[%clk 0:00:04.1]} 58. Rxg6 {[%clk 0:00:04]} 58... Rc4 {[%clk 0:00:01.9]}
59. Rxh6 {[%clk 0:00:03.7]} 59... Rxf4 {[%clk 0:00:02.3]} 60. Rc6 {[%clk
0:00:03.9]} 60... Nb3 {[%clk 0:00:01.4]} 61. h5 {[%clk 0:00:03.5]} 61... Kg7
{[%clk 0:00:01.7]} 62. h6+ {[%clk 0:00:03.5]} 1-0

[Event "Early-Titled-Tuesday-Blitz-January-30-2024"]
[Site "Chess.com"]
[Date "2024.01.30"]
[Round "7"]
[White "SharapovEvgeny"]
[Black "Alen_Yeremyann"]
[Result "1-0"]
[WhiteElo "2567"]
[BlackElo "2727"]
[TimeControl "180+1"]
[EndTime "9:20:25 PST"]
[Termination "SharapovEvgeny won by resignation"]

1. e4 {[%clk 0:03:00.1]} 1... c5 {[%clk 0:02:59.7]} 2. Nf3 {[%clk 0:03:00]} 2...
Nc6 {[%clk 0:02:59.2]} 3. d4 {[%clk 0:02:59.7]} 3... cxd4 {[%clk 0:02:58.7]} 4.
Nxd4 {[%clk 0:02:57.2]} 4... Nf6 {[%clk 0:02:58.4]} 5. Nc3 {[%clk 0:02:56.9]}
5... e5 {[%clk 0:02:58.9]} 6. Ndb5 {[%clk 0:02:56.7]} 6... d6 {[%clk 0:02:57.9]}
7. Bg5 {[%clk 0:02:56.3]} 7... a6 {[%clk 0:02:57.3]} 8. Na3 {[%clk 0:02:56.2]}
8... b5 {[%clk 0:02:57.5]} 9. Nd5 {[%clk 0:02:56.1]} 9... Be7 {[%clk 0:02:55.6]}
10. Bxf6 {[%clk 0:02:56.5]} 10... Bxf6 {[%clk 0:02:56.4]} 11. c3 {[%clk
0:02:57.1]} 11... Bg5 {[%clk 0:02:56.6]} 12. Nc2 {[%clk 0:02:56.9]} 12... O-O
{[%clk 0:02:57.3]} 13. a4 {[%clk 0:02:56.9]} 13... bxa4 {[%clk 0:02:56]} 14.
Rxa4 {[%clk 0:02:56.7]} 14... Rb8 {[%clk 0:02:56.2]} 15. b4 {[%clk 0:02:56]}
15... a5 {[%clk 0:02:54.8]} 16. Bc4 {[%clk 0:02:54.9]} 16... Bd7 {[%clk
0:02:50.1]} 17. Ra2 {[%clk 0:02:49.6]} 17... axb4 {[%clk 0:02:44.7]} 18. cxb4
{[%clk 0:02:49.5]} 18... Kh8 {[%clk 0:02:39.7]} 19. O-O {[%clk 0:02:49.1]} 19...
f5 {[%clk 0:02:39.7]} 20. exf5 {[%clk 0:02:48.3]} 20... Bxf5 {[%clk 0:02:39.6]}
21. b5 {[%clk 0:02:42.2]} 21... Na5 {[%clk 0:02:27.4]} 22. Bd3 {[%clk
0:02:38.1]} 22... Be6 {[%clk 0:02:22.8]} 23. Ncb4 {[%clk 0:02:36.3]} 23... Bxd5
{[%clk 0:02:09.3]} 24. Nxd5 {[%clk 0:02:35.8]} 24... Nb7 {[%clk 0:02:09.8]} 25.
Bc4 {[%clk 0:02:20]} 25... Nc5 {[%clk 0:02:09.2]} 26. Ra7 {[%clk 0:02:16.4]}
26... Rc8 {[%clk 0:02:02.5]} 27. Ba2 {[%clk 0:02:08.3]} 27... Ra8 {[%clk
0:01:53.1]} 28. Rxa8 {[%clk 0:02:04.7]} 28... Qxa8 {[%clk 0:01:52.9]} 29. Bc4
{[%clk 0:02:05.3]} 29... Qc8 {[%clk 0:01:42.8]} 30. b6 {[%clk 0:02:00.8]} 30...
e4 {[%clk 0:01:41.6]} 31. Qd4 {[%clk 0:01:54.6]} 31... Qf5 {[%clk 0:01:38.9]}
32. Ne3 {[%clk 0:01:51.1]} 32... Qg6 {[%clk 0:01:07.6]} 33. Qd5 {[%clk 0:01:46]}
33... Qh6 {[%clk 0:00:56.5]} 34. Nf5 {[%clk 0:01:39.8]} 34... Qg6 {[%clk
0:00:19.8]} 35. Nxd6 {[%clk 0:01:39.3]} 35... Nd7 {[%clk 0:00:20.6]} 36. Nf7+
{[%clk 0:01:34.3]} 36... Rxf7 {[%clk 0:00:20]} 37. Qxf7 {[%clk 0:01:34.4]} 37...
Qxf7 {[%clk 0:00:20.5]} 38. Bxf7 {[%clk 0:01:34.6]} 38... Nxb6 {[%clk
0:00:21.4]} 39. Rb1 {[%clk 0:01:32.9]} 39... Nd7 {[%clk 0:00:21.2]} 40. Rb7
{[%clk 0:01:29.8]} 40... Nf8 {[%clk 0:00:15.7]} 41. Rb8 {[%clk 0:01:29.8]} 41...
Be7 {[%clk 0:00:16.3]} 42. Re8 {[%clk 0:01:29.6]} 42... Bc5 {[%clk 0:00:17]} 43.
Rxe4 {[%clk 0:01:29.4]} 43... g6 {[%clk 0:00:17.8]} 44. Bd5 {[%clk 0:01:28.1]}
44... Kg7 {[%clk 0:00:17.5]} 45. Kf1 {[%clk 0:01:28.6]} 45... Nd7 {[%clk
0:00:17.6]} 46. Rc4 {[%clk 0:01:26]} 46... Bd6 {[%clk 0:00:17]} 47. Rc6 {[%clk
0:01:25.6]} 47... Be5 {[%clk 0:00:16]} 48. g3 {[%clk 0:01:23.5]} 48... Nf6
{[%clk 0:00:16.2]} 49. Bf3 {[%clk 0:01:21.5]} 49... h5 {[%clk 0:00:14.3]} 50. h4
{[%clk 0:01:21.2]} 50... Kf7 {[%clk 0:00:12.9]} 51. Ke2 {[%clk 0:01:20.9]} 51...
Kg7 {[%clk 0:00:13.5]} 52. Ra6 {[%clk 0:01:20.8]} 52... Kf7 {[%clk 0:00:13.2]}
53. Ke3 {[%clk 0:01:19.9]} 53... Kg7 {[%clk 0:00:12.1]} 54. Be4 {[%clk
0:01:20.2]} 54... Ng4+ {[%clk 0:00:11.2]} 55. Kf3 {[%clk 0:01:19.3]} 55... Bf6
{[%clk 0:00:12.1]} 56. Ra7+ {[%clk 0:01:17.4]} 56... Kh6 {[%clk 0:00:11.8]} 57.
Ra6 {[%clk 0:01:14.2]} 57... Kg7 {[%clk 0:00:11.3]} 58. Bc2 {[%clk 0:01:14]}
58... Ne5+ {[%clk 0:00:10.6]} 59. Ke2 {[%clk 0:01:11.4]} 59... Ng4 {[%clk
0:00:09.4]} 60. f3 {[%clk 0:01:11.2]} 60... Ne5 {[%clk 0:00:09.8]} 61. f4 {[%clk
0:01:11.4]} 61... Ng4 {[%clk 0:00:07.1]} 62. f5 {[%clk 0:01:09.8]} 62... gxf5
{[%clk 0:00:06.6]} 63. Bxf5 {[%clk 0:01:10]} 63... Ne5 {[%clk 0:00:07.5]} 64.
Ra7+ {[%clk 0:01:09.3]} 64... Kg8 {[%clk 0:00:06.6]} 65. Rh7 {[%clk 0:01:06.4]}
65... Nc6 {[%clk 0:00:06.4]} 66. Rxh5 {[%clk 0:01:05.3]} 66... Kg7 {[%clk
0:00:07.1]} 67. Be4 {[%clk 0:01:04.3]} 67... Nd4+ {[%clk 0:00:07.1]} 68. Kd3
{[%clk 0:01:04.3]} 68... Ne6 {[%clk 0:00:07.6]} 69. Ra5 {[%clk 0:01:03.8]} 69...
Be7 {[%clk 0:00:07.1]} 70. Ra7 {[%clk 0:01:01.5]} 70... Kf8 {[%clk 0:00:07.3]}
71. Ke2 {[%clk 0:00:58.9]} 71... Nd4+ {[%clk 0:00:07.3]} 72. Kd3 {[%clk
0:00:56.1]} 72... Ne6 {[%clk 0:00:07.6]} 73. Kc4 {[%clk 0:00:56.1]} 73... Nd8
{[%clk 0:00:04.8]} 74. Bd5 {[%clk 0:00:54.3]} 74... Bd6 {[%clk 0:00:03.2]} 75.
Rd7 {[%clk 0:00:53]} 75... Be7 {[%clk 0:00:03.6]} 76. h5 {[%clk 0:00:52.8]}
76... Ke8 {[%clk 0:00:04.5]} 77. Rxe7+ {[%clk 0:00:48]} 77... Kxe7 {[%clk
0:00:04.9]} 78. g4 {[%clk 0:00:48.2]} 78... Kf6 {[%clk 0:00:05.3]} 79. Kd4
{[%clk 0:00:48.7]} 79... Kg5 {[%clk 0:00:05.2]} 80. Ke5 {[%clk 0:00:49]} 80...
Kh6 {[%clk 0:00:02.8]} 81. Kf6 {[%clk 0:00:49.1]} 81... Kh7 {[%clk 0:00:03.5]}
82. g5 {[%clk 0:00:49.3]} 82... Kh8 {[%clk 0:00:03.9]} 83. h6 {[%clk 0:00:46.8]}
83... Nf7 {[%clk 0:00:04.5]} 84. Kxf7 {[%clk 0:00:45.9]} 1-0

[Event "Early-Titled-Tuesday-Blitz-January-30-2024"]
[Site "Chess.com"]
[Date "2024.01.30"]
[Round "7"]
[White "GMSrinath"]
[Black "IwkooO"]
[Result "0-1"]
[WhiteElo "2820"]
[BlackElo "2670"]
[TimeControl "180+1"]
[EndTime "9:20:29 PST"]
[Termination "IwkooO won on time"]

1. Nf3 {[%clk 0:03:00.8]} 1... Nf6 {[%clk 0:02:47.9]} 2. c4 {[%clk 0:03:00.4]}
2... b6 {[%clk 0:02:47.5]} 3. d4 {[%clk 0:02:58.4]} 3... Bb7 {[%clk 0:02:45.6]}
4. a3 {[%clk 0:02:57.4]} 4... e6 {[%clk 0:02:44.4]} 5. Nc3 {[%clk 0:02:57.5]}
5... d5 {[%clk 0:02:44.8]} 6. Qc2 {[%clk 0:02:57.7]} 6... Be7 {[%clk 0:02:40.1]}
7. cxd5 {[%clk 0:02:51.8]} 7... exd5 {[%clk 0:02:34.6]} 8. Bg5 {[%clk
0:02:52.1]} 8... O-O {[%clk 0:02:34.6]} 9. e3 {[%clk 0:02:52.4]} 9... Nbd7
{[%clk 0:02:33.6]} 10. Bd3 {[%clk 0:02:51.2]} 10... h6 {[%clk 0:02:32.9]} 11.
Bh4 {[%clk 0:02:50.7]} 11... c5 {[%clk 0:02:32.6]} 12. O-O {[%clk 0:02:49]}
12... Rc8 {[%clk 0:02:27]} 13. Rad1 {[%clk 0:02:49.3]} 13... Ne4 {[%clk
0:02:21]} 14. Nxd5 {[%clk 0:02:08.8]} 14... Bxd5 {[%clk 0:02:03.6]} 15. Bxe4
{[%clk 0:02:09]} 15... cxd4 {[%clk 0:02:03.6]} 16. Qb1 {[%clk 0:02:08.3]} 16...
Bc4 {[%clk 0:01:36.8]} 17. Bxe7 {[%clk 0:02:01.5]} 17... Qxe7 {[%clk 0:01:37.7]}
18. Rfe1 {[%clk 0:02:02.1]} 18... dxe3 {[%clk 0:01:25.7]} 19. Rxe3 {[%clk
0:02:03]} 19... Be6 {[%clk 0:01:22.5]} 20. Nd4 {[%clk 0:01:55.1]} 20... Nc5
{[%clk 0:01:20.2]} 21. Nxe6 {[%clk 0:01:51.3]} 21... Nxe6 {[%clk 0:01:16.8]} 22.
Bh7+ {[%clk 0:01:50.9]} 22... Kh8 {[%clk 0:01:16.9]} 23. Bf5 {[%clk 0:01:51.8]}
23... Rfd8 {[%clk 0:01:13.3]} 24. Rde1 {[%clk 0:01:50.7]} 24... Rd6 {[%clk
0:01:13.2]} 25. g3 {[%clk 0:01:46.8]} 25... Qf6 {[%clk 0:01:09.7]} 26. h4 {[%clk
0:01:43.6]} 26... Rd2 {[%clk 0:00:54.4]} 27. R3e2 {[%clk 0:00:49.3]} 27... Rxe2
{[%clk 0:00:51.8]} 28. Rxe2 {[%clk 0:00:48.9]} 28... Nd4 {[%clk 0:00:52.4]} 29.
Bxc8 {[%clk 0:00:48.1]} 29... Nxe2+ {[%clk 0:00:52.6]} 30. Kf1 {[%clk
0:00:41.4]} 30... Nxg3+ {[%clk 0:00:51.9]} 31. Kg2 {[%clk 0:00:42]} 31... Ne2
{[%clk 0:00:44.5]} 32. Qe4 {[%clk 0:00:42.1]} 32... Nf4+ {[%clk 0:00:44.2]} 33.
Kg3 {[%clk 0:00:41.7]} 33... Nh5+ {[%clk 0:00:32.5]} 34. Kg2 {[%clk 0:00:41.9]}
34... g6 {[%clk 0:00:29.6]} 35. Bg4 {[%clk 0:00:41.9]} 35... Qxh4 {[%clk
0:00:21.5]} 36. Qe5+ {[%clk 0:00:29.9]} 36... Nf6 {[%clk 0:00:20.7]} 37. Qb8+
{[%clk 0:00:21.1]} 37... Kg7 {[%clk 0:00:20.6]} 38. Bf3 {[%clk 0:00:21.7]} 38...
Qg5+ {[%clk 0:00:20.4]} 39. Kf1 {[%clk 0:00:22.2]} 39... Qc1+ {[%clk 0:00:20.7]}
40. Kg2 {[%clk 0:00:22.7]} 40... Qxb2 {[%clk 0:00:20.8]} 41. Qxa7 {[%clk
0:00:23.3]} 41... Qd4 {[%clk 0:00:21.3]} 42. a4 {[%clk 0:00:21]} 42... Qd6
{[%clk 0:00:20.9]} 43. Qa6 {[%clk 0:00:19.6]} 43... Qb4 {[%clk 0:00:19.7]} 44.
Bc6 {[%clk 0:00:16.1]} 44... h5 {[%clk 0:00:19]} 45. Qb7 {[%clk 0:00:14.8]}
45... Qd4 {[%clk 0:00:18.1]} 46. Qa7 {[%clk 0:00:12.8]} 46... h4 {[%clk
0:00:18.3]} 47. Bf3 {[%clk 0:00:11]} 47... Qf4 {[%clk 0:00:16.5]} 48. Qa8 {[%clk
0:00:11.2]} 48... g5 {[%clk 0:00:14.5]} 49. Bc6 {[%clk 0:00:09.6]} 49... g4
{[%clk 0:00:14.5]} 50. Qd8 {[%clk 0:00:07.1]} 50... h3+ {[%clk 0:00:14.5]} 51.
Kg1 {[%clk 0:00:07.7]} 51... Qc1+ {[%clk 0:00:13]} 52. Kh2 {[%clk 0:00:06.6]}
52... Qxc6 {[%clk 0:00:13.6]} 53. Qd4 {[%clk 0:00:06.3]} 53... Qc5 {[%clk
0:00:13.3]} 54. Qf4 {[%clk 0:00:06.5]} 54... Kg6 {[%clk 0:00:11.4]} 55. Qb8
{[%clk 0:00:05.4]} 55... Qf5 {[%clk 0:00:10.6]} 56. Qxb6 {[%clk 0:00:04.4]}
56... Qf4+ {[%clk 0:00:10.3]} 57. Kg1 {[%clk 0:00:04.8]} 57... Qf3 {[%clk
0:00:09.2]} 58. Qb1+ {[%clk 0:00:02.2]} 58... Kg7 {[%clk 0:00:09.4]} 59. Qf1
{[%clk 0:00:01.9]} 59... Ne4 {[%clk 0:00:09]} 60. a5 {[%clk 0:00:01.7]} 60...
Nd2 {[%clk 0:00:08.8]} 61. Qa1+ {[%clk 0:00:01.7]} 61... f6 {[%clk 0:00:08.6]}
0-1